bitfinex/quotes_SOLUSD_20250918
["timestamp","ask_amount","ask_price","bid_price","bid_amount"]
[1758178322584,8.73686366,243.88,243.87,0.03]
[1758178325678,9.0211868,243.88,243.87,0.03]
[1758178326172,9.0211868,243.88,243.85,1e-08]
[1758178326173,32.86772389,243.88,243.85,1e-08]
[1758178326482,2.61894195,243.86,243.85,1e-08]
[1758178326873,16.87453596,243.86,243.85,1e-08]
[1758178327074,19.20915477,243.86,243.85,1e-08]
[1758178327487,24.95166853,243.86,243.85,1e-08]
[1758178328466,6.6868369,243.86,243.85,1e-08]
[1758178328682,8.36145571,243.86,243.85,1e-08]
[1758178328886,8.07713257,243.86,243.85,1e-08]
[1758178329267,34.07713257,243.86,243.85,1e-08]
[1758178329794,8.07713257,243.86,243.85,1e-08]
[1758178330665,5.74251376,243.86,243.85,1e-08]
[1758178330866,8.07713257,243.86,243.85,1e-08]
[1758178339893,35.02145571,243.86,243.85,1e-08]
[1758178344807,21.4860043,243.76,243.7,67.22031162]
[1758178345209,21.4860043,243.76,243.71,0.1]
[1758178346176,23.82062311,243.76,243.71,0.1]
[1758178346379,2.33461881,243.74,243.71,0.1]
[1758178347274,4.1026516,243.75,243.71,0.1]
[1758178347480,2.33461881,243.74,243.71,0.1]
[1758178348602,6.43727041,243.75,243.71,0.1]
[1758178348983,2.33461881,243.74,243.71,0.1]
[1758178349380,6.43742589,243.74,243.71,0.1]
[1758178349586,2.33461881,243.72,243.71,0.1]
[1758178350189,2.33461881,243.72,243.7,41.22031162]
[1758178350190,2.33461881,243.71,243.7,38.07131162]
[1758178354103,6.43796149,243.71,243.63,13.59559401]
[1758178354300,6.43796149,243.71,243.68,0.03]
[1758178354496,2.33461881,243.69,243.68,0.03]
[1758178355202,3.04461881,243.69,243.68,0.03]
[1758178355792,2.20700743,243.69,243.68,0.03]
[1758178356002,6.31058164,243.69,243.68,0.03]
[1758178363424,7.95325838,243.69,243.68,0.03]
[1758178364316,3.84968417,243.69,243.68,0.03]
[1758178364500,2.20700743,243.69,243.68,0.03]
[1758178364817,1.49700743,243.69,243.68,0.03]
[1758178366019,2.20700743,243.69,243.68,0.03]
[1758178371724,22.13494367,243.67,243.66,2e-08]
[1758178374112,22.84494367,243.67,243.66,2e-08]
[1758178376450,25.01159736,243.66,243.65,0.03]
[1758178376733,26.0,243.63,243.62,0.2]
[1758178377039,26.0,243.63,243.6,0.2]
[1758178377244,2.20700743,243.62,243.6,0.2]
[1758178377938,6.31176073,243.62,243.6,0.2]
[1758178382436,18.63537894,243.62,243.6,0.2]
[1758178386043,18.91970208,243.62,243.6,0.2]
[1758178386420,6.59608387,243.62,243.6,0.2]
[1758178386839,12.32513712,243.61,243.6,0.2]
[1758178387219,13.00513712,243.61,243.6,0.2]
[1758178388847,13.28946026,243.61,243.6,0.2]
[1758178391853,13.82214455,243.61,243.6,0.2]
[1758178392057,1.49700743,243.61,243.6,0.2]
[1758178393344,3.14022403,243.61,243.6,0.2]
[1758178394552,1.49700743,243.61,243.6,0.2]
[1758178397135,2.17700743,243.61,243.6,0.2]
[1758178400455,1.49700743,243.61,243.6,0.2]
[1758178400760,0.06,243.62,243.6,0.2]
[1758178402954,1.55700743,243.62,243.6,0.2]
[1758178403556,1.49700743,243.61,243.6,0.2]
[1758178403946,2.17700743,243.61,243.6,0.2]
[1758178404544,0.68,243.61,243.6,0.2]
[1758178404868,2.17700743,243.61,243.6,0.2]
[1758178406174,1.49700743,243.61,243.6,0.2]
[1758178407042,2.17700743,243.61,243.6,0.2]
[1758178410758,2.23700743,243.61,243.6,0.2]
[1758178413566,1.55700743,243.61,243.6,0.2]
[1758178415853,2.40076107,243.61,243.6,0.2]
[1758178420155,3.08076107,243.61,243.6,0.2]
[1758178421467,2.40076107,243.61,243.6,0.2]
[1758178421755,3.08076107,243.61,243.6,0.2]
[1758178430177,4.72384267,243.61,243.6,0.2]
[1758178434782,14.36781608,243.6,243.57,0.03]
[1758178435088,4.68152214,243.58,243.57,0.03]
[1758178435387,2.34076107,243.58,243.57,0.03]
[1758178435565,3.02076107,243.58,243.57,0.03]
[1758178436285,7.12618844,243.58,243.57,0.03]
[1758178436473,9.46694951,243.58,243.57,0.03]
[1758178437682,7.12618844,243.58,243.57,0.03]
[1758178439574,3.02076107,243.58,243.57,0.03]
[1758178439886,2.34076107,243.58,243.57,0.03]
[1758178441070,3.06076107,243.58,243.57,0.03]
[1758178443374,3.01076107,243.58,243.57,0.03]
[1758178443874,2.34076107,243.58,243.57,0.03]
[1758178444781,4.16674562,243.61,243.57,0.03]
[1758178444973,2.34076107,243.58,243.57,0.03]
[1758178450198,0.06,243.6,243.57,0.03]
[1758178450394,2.34076107,243.59,243.57,0.03]
[1758178452078,0.06,243.6,243.57,0.03]
[1758178452380,0.06,243.6,243.57,14.39958573]
[1758178453109,0.06,243.6,243.59,39.87991715]
[1758178454307,3.07076107,243.6,243.57,4.13559592]
[1758178454482,2.34076107,243.58,243.57,4.13559592]
[1758178456098,2.34076107,243.58,243.57,0.03]
[1758178456301,3.01076107,243.58,243.57,0.03]
[1758178461096,0.06,243.6,243.57,0.03]
[1758178461486,0.73,243.6,243.57,0.03]
[1758178461786,3.07076107,243.6,243.57,0.03]
[1758178462287,2.34076107,243.58,243.57,0.03]
[1758178462702,3.01076107,243.58,243.57,0.03]
[1758178468408,2.34076107,243.58,243.57,0.03]
[1758178472207,0.73,243.6,243.57,0.03]
[1758178472413,2.34076107,243.58,243.57,0.03]
[1758178473310,0.73,243.6,243.57,0.03]
[1758178473515,3.02076107,243.59,243.57,0.03]
[1758178474090,2.34076107,243.59,243.57,0.03]
[1758178474494,2.34076107,243.58,243.57,0.03]
[1758178476012,0.74,243.6,243.57,0.03]
[1758178476013,0.06,243.6,243.59,26.0]
[1758178478118,0.06,243.6,243.59,30.10525883]
[1758178479310,0.06,243.6,243.59,43.98517598]
[1758178479502,0.06,243.6,243.59,44.39570186]
[1758178479814,0.06,243.6,243.59,46.03804138]
[1758178485328,0.06,243.6,243.59,126.83804138]
[1758178485502,0.06,243.6,243.59,126.4275155]
[1758178486421,1e-08,243.64,243.63,26.0]
[1758178486621,1e-08,243.65,243.64,13.87991715]
[1758178486806,0.74,243.73,243.66,39.87991715]
[1758178487309,0.06,243.73,243.66,39.87991715]
[1758178487820,0.06,243.73,243.66,45.62593162]
[1758178488038,0.74,243.73,243.66,45.62593162]
[1758178488319,0.68,243.72,243.66,45.62593162]
[1758178488919,0.06,243.73,243.69,26.0]
[1758178489721,0.06,243.73,243.69,39.87991715]
[1758178490102,1e-08,243.7,243.69,39.87991715]
[1758178491813,1e-08,243.7,243.69,43.98349136]
[1758178493630,0.68000001,243.7,243.69,43.98349136]
[1758178494040,0.68000001,243.7,243.69,4.10357421]
[1758178494342,0.68000001,243.7,243.69,30.10357421]
[1758178494637,0.68000001,243.7,243.69,4.10357421]
[1758178497722,2.17712124,243.7,243.69,30.10357421]
[1758178499547,0.68000001,243.7,243.69,30.10357421]
[1758178501044,0.68000001,243.7,243.69,26.0]
[1758178502647,1e-08,243.7,243.69,39.87991715]
[1758178503152,1e-08,243.7,243.69,41.52165]
[1758178503849,1e-08,243.7,243.69,39.87991715]
[1758178504052,0.67000001,243.7,243.69,26.0]
[1758178505145,1e-08,243.7,243.69,26.28432314]
[1758178505444,1e-08,243.7,243.69,39.87991715]
[1758178506148,1e-08,243.7,243.69,120.67991715]
[1758178507153,0.67000001,243.7,243.69,106.8]
[1758178507320,1e-08,243.7,243.69,120.67991715]
[1758178511955,1e-08,243.73,243.72,39.59559401]
[1758178512144,1e-08,243.73,243.72,120.80590091]
[1758178512443,1e-08,243.73,243.72,120.39559401]
[1758178512649,1e-08,243.73,243.72,122.03699002]
[1758178512952,0.67,243.8,243.78,0.28432314]
[1758178513130,0.06,243.86,243.78,0.28432314]
[1758178513335,1e-08,243.79,243.78,26.28432314]
[1758178513649,1e-08,243.79,243.78,27.92531511]
[1758178514347,1e-08,243.79,243.78,32.02737434]
[1758178514548,0.67000001,243.79,243.78,45.62296835]
[1758178515235,1e-08,243.79,243.78,45.62296835]
[1758178515438,1e-08,243.79,243.78,46.03317427]
[1758178517340,1e-08,243.79,243.78,66.03317427]
[1758178517742,1e-08,243.79,243.78,146.83317427]
[1758178518044,0.06,243.86,243.83,13.59559401]
[1758178518232,0.06,243.86,243.8,20.28432314]
[1758178518233,0.06,243.86,243.85,13.87991715]
[1758178518843,0.06,243.86,243.85,15.5205053]
[1758178519049,0.06,243.86,243.85,19.62138698]
[1758178519232,0.06,243.86,243.85,20.03147514]
[1758178520768,0.06,243.95,243.86,0.28432314]
[1758178520943,0.06,244.04,243.99,26.0]
[1758178521140,1e-08,244.04,244.03,43.97777397]
[1758178521341,1e-08,244.04,244.03,47.02219172]
[1758178521552,0.67,244.07,244.03,57.26683377]
[1758178521853,0.67,244.06,244.05,13.87991715]
[1758178522055,0.77,244.09,244.08,26.0]
[1758178522256,0.1,244.09,244.08,29.04441775]
[1758178522849,2.26712123,244.09,244.05,0.28432314]
[1758178523147,2.26712123,244.09,244.06,3.03331946]
[1758178523355,0.67,244.08,244.05,0.28432314]
[1758178523538,0.67,244.07,244.05,0.28432314]
[1758178523733,0.67,244.07,244.05,4.38168989]
[1758178523940,0.67,244.06,244.05,4.38168989]
[1758178524149,0.67,244.06,244.05,7.41162734]
[1758178525063,0.67,244.06,244.05,3.31426059]
[1758178526046,0.67,244.06,244.05,0.28432314]
[1758178528560,0.67,244.06,244.05,1.92363381]
[1758178528859,0.1,244.09,244.07,0.28432314]
[1758178529461,0.1,244.09,244.08,4.09701737]
[1758178530060,0.77,244.09,244.08,5.73626086]
[1758178531846,3.76424246,244.09,244.08,0.91924349]
[1758178532037,4.09701737,244.08,244.0,40.60556611]
[1758178532235,0.69,244.07,244.0,40.60556611]
[1758178532439,1.49712123,244.01,244.0,40.60556611]
[1758178532660,2.18712123,244.01,244.0,40.60556611]
[1758178533263,0.69,244.01,244.0,40.60556611]
[1758178533459,2.18712123,244.01,244.0,40.60556611]
[1758178537447,2.18712123,244.01,244.0,40.63556611]
[1758178539762,3.02338322,244.01,244.0,40.63556611]
[1758178544072,5.35676644,244.01,244.0,40.63556611]
[1758178545064,5.35676644,244.01,244.0,18.93748293]
[1758178545467,26.0,243.98,243.97,0.03]
[1758178545669,28.33338322,243.98,243.97,0.03]
[1758178545972,29.02338322,243.98,243.97,0.03]
[1758178546568,28.33338322,243.98,243.97,0.03]
[1758178546869,29.02338322,243.98,243.97,0.03]
[1758178550654,0.69,244.01,243.97,0.75]
[1758178550976,2.33338322,244.01,243.98,0.72]
[1758178551566,0.69,244.03,243.98,0.72]
[1758178551757,2.33338322,244.0,243.99,0.72]
[1758178552284,2.33338322,244.0,243.97,0.03]
[1758178552581,2.33338322,244.0,243.98,0.72]
[1758178553862,4.78782756,244.04,243.98,0.72]
[1758178554049,2.33338322,244.0,243.98,0.72]
[1758178555955,2.33338322,244.0,243.97,0.03]
[1758178556183,2.39338322,244.0,243.98,0.72]
[1758178556482,2.39338322,244.0,243.97,0.03]
[1758178556483,0.06,244.0,243.99,0.72]
[1758178561787,0.06,244.0,243.97,26.72]
[1758178562286,2.33338322,243.98,243.97,0.03]
[1758178563384,0.77,244.0,243.97,0.03]
[1758178563385,2.39338322,244.0,243.97,0.72]
[1758178563587,0.06,244.0,243.98,0.69]
[1758178563768,0.06,244.0,243.99,0.69]
[1758178565470,0.06,244.0,243.99,30.78852862]
[1758178567669,0.06,244.0,243.99,44.66844577]
[1758178571770,0.06,244.0,243.97,4.12872875]
[1758178571973,2.39338322,244.0,243.97,4.12872875]
[1758178572179,2.33338322,243.99,243.97,4.12872875]
[1758178572582,2.39338322,244.0,243.97,4.81872875]
[1758178574895,0.06,244.0,243.98,14.56991715]
[1758178575294,0.06,244.0,243.99,0.69]
[1758178578093,0.06,244.0,243.99,4.78852862]
[1758178578299,0.06,244.0,243.99,18.66844577]
[1758178578981,0.06,244.0,243.99,99.46844577]
[1758178583905,0.06,244.0,243.99,98.77844577]
[1758178584103,0.06,244.0,243.99,99.46844577]
[1758178584618,0.06,244.0,243.99,98.77844577]
[1758178584819,0.06,244.0,243.99,98.6362842]
[1758178585031,0.06,244.0,243.99,99.46844577]
[1758178585602,0.06,244.03,243.99,99.46844577]
[1758178585603,0.06,244.03,244.02,39.59559401]
[1758178585910,0.06,244.03,244.02,39.87991715]
[1758178586106,0.06,244.03,244.02,40.56991715]
[1758178586618,0.06,244.03,244.02,44.6679419]
[1758178587000,1e-08,244.03,244.02,44.6679419]
[1758178588427,1e-08,244.03,244.02,43.9779419]
[1758178589213,1e-08,244.03,244.02,43.69361876]
[1758178589512,1e-08,244.03,244.02,30.09802475]
[1758178590433,0.71000001,244.03,244.02,30.09802475]
[1758178591312,0.71000001,244.03,244.02,4.09802475]
[1758178591739,3.04338323,244.03,243.99,80.83]
[1758178591910,3.04338322,244.02,243.99,80.83]
[1758178592238,3.04338322,244.02,243.99,84.92844439]
[1758178592438,1e-08,244.03,243.99,84.92844439]
[1758178592616,0.72000001,244.03,243.99,84.92844439]
[1758178593012,3.05338323,244.03,243.99,84.92844439]
[1758178593263,0.72,244.02,243.99,84.92844439]
[1758178593421,3.05338322,244.02,243.99,84.92844439]
[1758178595037,3.05338322,244.02,243.99,4.12844439]
[1758178595333,2.33338322,244.02,243.99,4.12844439]
[1758178595726,0.72,244.02,243.99,4.12844439]
[1758178596040,3.05338322,244.02,243.99,4.12844439]
[1758178596338,2.33338322,244.02,243.99,4.12844439]
[1758178596508,0.72,244.01,243.99,4.12844439]
[1758178596936,2.33338322,244.02,243.99,4.12844439]
[1758178597119,3.05338322,244.02,243.99,4.12844439]
[1758178598714,0.72,244.02,243.99,4.12844439]
[1758178598920,2.33338323,244.03,243.99,4.12844439]
[1758178599121,2.33338323,244.03,243.99,4.79844439]
[1758178599538,1e-08,244.03,243.99,4.79844439]
[1758178599835,0.72000001,244.03,243.99,4.79844439]
[1758178600039,1e-08,244.03,243.99,4.79844439]
[1758178600719,0.72000001,244.03,243.99,4.79844439]
[1758178600913,0.72000001,244.03,243.99,0.03]
[1758178601329,0.72,244.02,243.99,0.03]
[1758178602241,1.49237191,244.03,243.99,0.03]
[1758178602620,0.72000001,244.03,243.99,0.03]
[1758178602934,0.72,244.02,243.99,0.03]
[1758178603120,2.2123719,244.02,243.99,26.03]
[1758178603445,0.72,244.01,243.99,26.03]
[1758178604120,0.72,244.01,243.99,30.1284354]
[1758178604845,1.4923719,244.02,243.99,30.1284354]
[1758178605038,2.2123719,244.02,243.99,30.1284354]
[1758178605937,0.72,244.02,243.99,30.1284354]
[1758178606134,1e-08,244.03,243.99,30.1284354]
[1758178606336,0.72000001,244.03,243.99,30.1284354]
[1758178607340,0.72000001,244.03,243.99,30.7984354]
[1758178612855,2.21237191,244.03,243.99,30.1284354]
[1758178613155,0.72,244.02,243.99,30.1284354]
[1758178613326,1.49237191,244.03,243.99,30.1284354]
[1758178613650,2.21237191,244.03,243.99,30.7984354]
[1758178613855,2.21237191,244.03,243.99,30.1284354]
[1758178614236,0.72,244.02,243.99,30.1284354]
[1758178614950,1.49237191,244.03,243.99,30.1284354]
[1758178615253,2.21237191,244.03,243.99,30.7984354]
[1758178616152,2.21237191,244.03,243.99,30.1284354]
[1758178617248,0.72,244.02,243.99,4.1284354]
[1758178617554,2.2123719,244.02,243.99,0.03]
[1758178617727,2.2123719,244.02,243.99,4.12851693]
[1758178618553,1e-08,244.03,244.02,39.59559401]
[1758178618752,1e-08,244.03,244.02,40.28971962]
[1758178618956,1e-08,244.03,244.02,40.95971962]
[1758178619161,1e-08,244.03,244.02,40.54991715]
[1758178619357,1e-08,244.03,244.02,44.6479419]
[1758178625652,1e-08,244.03,244.02,44.6779419]
[1758178628748,1e-08,244.05,244.04,0.28432314]
[1758178629163,1e-08,244.05,244.04,14.54991715]
[1758178630271,1e-08,244.05,244.04,17.75867041]
[1758178630564,1e-08,244.05,244.04,21.85635931]
[1758178631370,1e-08,244.06,244.04,21.85635931]
[1758178631576,1e-08,244.06,244.05,0.67]
[1758178632784,1e-08,244.06,244.05,0.95432314]
[1758178636662,1e-08,244.06,244.05,81.75432314]
[1758178637582,1e-08,244.08,244.05,81.75432314]
[1758178637763,1e-08,244.09,244.08,26.0]
[1758178637958,1e-08,244.09,244.08,39.87991715]
[1758178638160,1e-08,244.09,244.08,40.54991715]
[1758178638383,1e-08,244.09,244.08,39.87991715]
[1758178638765,1e-08,244.09,244.08,43.97693452]
[1758178639489,1e-08,244.09,244.08,44.64693452]
[1758178642488,1e-08,244.09,244.08,125.44693452]
[1758178642689,0.69000001,244.09,244.08,124.77693452]
[1758178643082,0.69000001,244.09,244.08,110.89701737]
[1758178643478,1e-08,244.09,244.08,110.92701737]
[1758178643890,0.06000001,244.09,244.08,44.00693452]
[1758178644594,0.06000001,244.09,244.08,44.67693452]
[1758178649000,0.06000001,244.09,244.08,44.00693452]
[1758178650983,1.4923719,244.14,244.08,44.00693452]
[1758178650984,0.1,244.19,244.08,125.47693452]
[1758178651222,0.1,244.19,244.17,13.59559401]
[1758178651519,0.1,244.19,244.14,0.28432314]
[1758178651520,0.1,244.19,244.18,39.87991715]
[1758178651685,0.1,244.19,244.18,40.54991715]
[1758178652899,0.1,244.19,244.18,44.64525665]
[1758178653414,0.1,244.19,244.18,43.97525665]
[1758178653790,0.1,244.19,244.18,44.69525665]
[1758178653990,0.1,244.19,244.18,43.97525665]
[1758178655912,0.1,244.19,244.18,75.99525665]
[1758178656320,0.1,244.19,244.18,76.71525665]
[1758178656499,0.1,244.19,244.18,75.99525665]
[1758178656702,0.1,244.19,244.18,76.71525665]
[1758178657401,0.1,244.19,244.18,75.99525665]
[1758178657611,0.1,244.19,244.18,76.71525665]
[1758178657919,0.1,244.19,244.18,75.99525665]
[1758178658694,0.1,244.19,244.18,76.71525665]
[1758178663306,0.16,244.19,244.18,76.71525665]
[1758178666223,0.16,244.19,244.18,75.99525665]
[1758178666406,0.16,244.19,244.18,76.71525665]
[1758178667033,0.16,244.19,244.18,75.99525665]
[1758178668718,0.16,244.19,244.18,75.87525665]
[1758178669230,0.16,244.19,244.18,156.67525665]
[1758178669834,0.84,244.19,244.18,124.77525665]
[1758178670038,0.84,244.19,244.18,84.8953395]
[1758178670225,0.84,244.19,244.18,116.7953395]
[1758178674118,0.16,244.19,244.18,116.7953395]
[1758178674907,0.84,244.19,244.18,116.7953395]
[1758178675126,0.84,244.19,244.18,35.9953395]
[1758178675626,0.16,244.19,244.18,35.9953395]
[1758178679134,0.84,244.19,244.18,35.9953395]
[1758178679430,0.16,244.19,244.18,35.9553395]
[1758178683649,0.16,244.19,244.18,36.6653395]
[1758178687246,0.16,244.19,244.18,30.8053395]
[1758178687455,0.16,244.19,244.18,62.6053395]
[1758178687643,0.16,244.19,244.18,30.8053395]
[1758178687847,0.16,244.19,244.18,62.6053395]
[1758178688145,1e-08,244.19,244.18,76.48525665]
[1758178688836,1e-08,244.19,244.18,44.68525665]
[1758178689033,1e-08,244.19,244.18,76.48525665]
[1758178689933,1e-08,244.19,244.18,82.05206209]
[1758178690147,1e-08,244.19,244.18,168.27069549]
[1758178690345,1e-08,244.19,244.18,169.90893193]
[1758178691948,1e-08,244.19,244.18,138.10893193]
[1758178692148,1e-08,244.19,244.18,169.90893193]
[1758178693649,1e-08,244.19,244.18,138.10893193]
[1758178693951,1e-08,244.19,244.18,169.90893193]
[1758178694523,1e-08,244.19,244.18,138.10893193]
[1758178694747,1e-08,244.19,244.18,169.88893193]
[1758178695126,1e-08,244.19,244.18,138.10893193]
[1758178695339,1e-08,244.19,244.18,169.88893193]
[1758178696655,1e-08,244.19,244.18,169.86893193]
[1758178700563,1e-08,244.19,244.18,169.84893193]
[1758178702470,1e-08,244.19,244.18,169.82893193]
[1758178704167,1e-08,244.19,244.18,138.10893193]
[1758178704473,1e-08,244.19,244.18,169.80893193]
[1758178708057,1e-08,244.19,244.18,169.78893193]
[1758178708561,1e-08,244.19,244.18,138.10893193]
[1758178708763,1e-08,244.19,244.18,169.78893193]
[1758178709271,1e-08,244.22,244.21,26.28432314]
[1758178709475,1e-08,244.22,244.21,57.96432314]
[1758178710673,1e-08,244.22,244.21,62.05915955]
[1758178711878,1e-08,244.22,244.21,30.37915955]
[1758178712169,1e-08,244.22,244.21,62.03915955]
[1758178713272,0.67000001,244.22,244.21,63.6773289]
[1758178713654,0.67000001,244.22,244.21,144.4773289]
[1758178713856,0.67000001,244.22,244.21,112.8173289]
[1758178714059,0.67000001,244.22,244.21,63.6773289]
[1758178714776,1e-08,244.22,244.21,63.6773289]
[1758178714981,1e-08,244.22,244.21,63.6573289]
[1758178715168,1e-08,244.22,244.21,32.0173289]
[1758178715354,1e-08,244.22,244.21,64.3073289]
[1758178715560,1e-08,244.22,244.21,63.6873289]
[1758178715757,1e-08,244.22,244.21,32.0473289]
[1758178715964,1e-08,244.22,244.21,63.6873289]
[1758178716365,1e-08,244.22,244.21,32.0473289]
[1758178716566,1e-08,244.22,244.21,63.6873289]
[1758178717878,1e-08,244.22,244.21,32.0473289]
[1758178718066,1e-08,244.22,244.21,64.3373289]
[1758178718265,1e-08,244.22,244.21,64.3173289]
[1758178718779,1e-08,244.22,244.21,63.6673289]
[1758178720899,1e-08,244.22,244.21,64.3173289]
[1758178721782,1e-08,244.22,244.21,32.6973289]
[1758178721966,1e-08,244.22,244.21,64.2973289]
[1758178722986,1e-08,244.22,244.21,32.6973289]
[1758178723174,1e-08,244.22,244.21,64.2973289]
[1758178723680,0.67,244.28,244.25,26.0]
[1758178723862,0.67,244.28,244.26,31.6]
[1758178724563,1.48890501,244.37,244.27,4.09383059]
[1758178724765,1.48890501,244.37,244.28,31.62]
[1758178726291,0.77,244.29,244.28,31.62]
[1758178728670,0.67,244.33,244.32,26.0]
[1758178728869,0.67,244.33,244.32,57.58]
[1758178729282,0.67,244.35,244.32,57.58]
[1758178729589,0.67,244.34,244.32,59.21756576]
[1758178729791,0.67,244.33,244.32,57.58]
[1758178730294,0.67,244.33,244.32,69.86224601]
[1758178730463,0.67,244.33,244.32,73.9552388]
[1758178731486,0.67,244.33,244.32,42.3752388]
[1758178731693,0.67,244.33,244.32,48.0952388]
[1758178733800,0.1,244.39,244.32,48.0952388]
[1758178733971,0.67,244.36,244.32,48.0952388]
[1758178734294,0.67,244.35,244.32,35.81299279]
[1758178734494,0.67,244.34,244.33,1.63769985]
[1758178734796,0.67,244.34,244.33,33.33769985]
[1758178735702,0.67,244.34,244.33,1.63769985]
[1758178735876,0.67,244.34,244.33,31.7]
[1758178740403,0.67,244.34,244.33,31.68]
[1758178740900,0.67,244.34,244.31,26.0]
[1758178741096,2.20890501,244.33,244.29,0.03]
[1758178741292,1.48890501,244.32,244.3,31.68]
[1758178741483,0.72,244.31,244.3,31.68]
[1758178741679,0.72,244.31,244.29,31.71]
[1758178741886,0.72,244.3,244.29,31.71]
[1758178744808,2.20890501,244.3,244.29,0.03]
[1758178748012,0.72,244.3,244.29,0.03]
[1758178748197,2.20890501,244.3,244.29,0.03]
[1758178750513,0.72,244.3,244.29,0.03]
[1758178750705,2.20890501,244.3,244.29,0.03]
[1758178773739,2.26890501,244.3,244.29,0.03]
[1758178775427,0.06,244.3,244.29,0.03]
[1758178775630,0.06,244.3,244.29,0.75]
[1758178782623,0.06,244.3,244.29,32.31]
[1758178783553,0.06,244.3,244.29,0.75]
[1758178783730,0.06,244.3,244.29,32.31]
[1758178805169,0.06,244.3,244.29,0.75]
[1758178805341,0.06,244.3,244.29,32.31]
[1758178805546,0.06,244.3,244.29,33.94803518]
[1758178805955,0.06,244.3,244.29,32.31]
[1758178807458,0.06,244.3,244.29,33.94803518]
[1758178808184,0.06,244.3,244.29,47.82795233]
[1758178808355,0.06,244.33,244.29,47.82795233]
[1758178808356,0.06,244.33,244.3,28.2065647]
[1758178808554,0.06,244.33,244.31,31.56]
[1758178808870,0.06,244.33,244.32,4.09299279]
[1758178809048,0.06,244.33,244.32,6.41062559]
[1758178809677,0.06,244.33,244.32,101.09054274]
[1758178816461,0.06,244.35,244.34,13.87991715]
[1758178816665,0.06,244.35,244.34,45.41991715]
[1758178816987,0.06,244.35,244.34,46.09991715]
[1758178817190,0.06,244.35,244.34,47.73728181]
[1758178817873,1e-08,244.35,244.34,47.73728181]
[1758178818075,1e-08,244.35,244.34,53.52852026]
[1758178818260,1e-08,244.35,244.34,57.62117803]
[1758178820482,1e-08,244.35,244.34,138.42117803]
[1758178829578,1e-08,244.35,244.34,132.62993958]
[1758178834386,1e-08,244.35,244.34,101.08993958]
[1758178834585,0.69000001,244.35,244.34,33.17736466]
[1758178834793,0.69000001,244.35,244.34,31.54]
[1758178836496,0.69000001,244.35,244.34,57.54]
[1758178839094,1e-08,244.35,244.34,58.26]
[1758178839499,1e-08,244.35,244.33,30.81278861]
[1758178839694,1e-08,244.35,244.34,46.13991715]
[1758178840006,1e-08,244.35,244.34,47.77741587]
[1758178840306,1e-08,244.35,244.34,15.51741587]
[1758178840507,1e-08,244.35,244.34,47.05741587]
[1758178840906,1e-08,244.35,244.34,47.77741587]
[1758178841809,1e-08,244.35,244.34,47.05741587]
[1758178842394,1e-08,244.35,244.34,47.77741587]
[1758178844298,1e-08,244.35,244.34,128.60741587]
[1758178846901,1e-08,244.35,244.34,128.58741587]
[1758178852325,1e-08,244.35,244.34,127.86741587]
[1758178852719,1e-08,244.35,244.34,128.58741587]
[1758178857223,1e-08,244.35,244.34,127.86741587]
[1758178858000,1e-08,244.35,244.34,128.58741587]
[1758178868624,1e-08,244.35,244.34,127.86741587]
[1758178869331,1e-08,244.35,244.34,128.55741587]
[1758178870239,1e-08,244.35,244.34,127.86741587]
[1758178870618,1e-08,244.35,244.34,128.55741587]
[1758178871054,1e-08,244.35,244.34,127.86741587]
[1758178872838,0.68000001,244.35,244.34,127.86741587]
[1758178873437,1e-08,244.35,244.34,127.86741587]
[1758178878238,1e-08,244.35,244.34,128.55741587]
[1758178880151,1e-08,244.35,244.34,96.34741587]
[1758178880352,1e-08,244.35,244.34,127.84741587]
[1758178880865,1e-08,244.35,244.34,128.53741587]
[1758178882744,1e-08,244.35,244.34,97.03741587]